Workbook

Sheet NL
A2: DIT WORKSHEET GEEFT EEN INSCHATTING VAN NODIGE VERMOGEN EN TYPE WARMTEPOMP VOOR UW ZWEMBAD. | Q2: Maand | R2: Gem | S2: Gem max | T2: Water temp | U2: Temp | V2: KW nodig om | W2: kW die wamtepomp | X2: Verbruik | Y2: Verbruik
A3: (Eigendom van Zwembad BVBA. Dit worksheet mag niet doorgestuurd of gecopieerd worden zonder schriftelijke toestemming) | R3: temp | S3: temp | T3: zonder | U3: verhoging | V3: temp hoog te houden | W3: verbruikt | X3: electr. Verw | Y3: olie | AD3: Resultaten
T4: verwarming | AC4: jan | AD4: feb | AE4: ma | AF4: apr | AG4: mei | AH4: kW | BY4: MONO | CM4: TRIFASe
A6: U kan de blauwe cijfers in dit worksheet naar eigen inzicht en situatie aanpassen | AC6: =IF(E$13="binnenbad",$V$32/($AE$89*AH6/4),$V$7/($AE$89*AH6/4)) -> 48.08533333 | AD6: =IF(E$13="binnenbad",$V$32/($AE$89*AH6/4),$V$8/($AE$90*AH6/4)) -> 43.35562842 | AE6: =IF(E$13="binnenbad",$V$32/($AE$89*AH6/4),$V$9/($AE$91*AH6/4)) -> 31.07555556 | AF6: =IF(E$13="binnenbad",$V$32/($AE$89*AH6/4),$V$10/($AE$92*AH6/4)) -> 21.73348399 | AG6: =IF(E$13="binnenbad",$V$32/($AE$89*AH6/4),INT($V$11/($AE$93*AH6/4))) -> 13 | AH6: 50 | BY6: Eco warmtepompen mono | CC6: Harmo pac warmtepompen mono | CG6: Harmo Powerpac | CM6: Eco warmtepompen mono | CQ6: Harmo pac warmtepompen mono | CU6: Harmo Powerpac
Q7: Jan | R7: 2.5 | S7: 5.1 | T7: =Z7+(AA7*$E$22/100) -> 5 | U7: =$E$11-T7 -> 23 | V7: =(1/Q$50)*(1.5-(E$12/200))*($E$10/50)*23*U7 -> 987.4666667 | W7: =V7/AE89 -> 601.0666667 | X7: =V7 -> 987.4666667 | Y7: =X7/10 -> 98.74666667 | Z7: 5 | AA7: 0 | AC7: =IF(E$13="binnenbad",$V$32/($AE$89*AH7/4),$V$7/($AE$89*AH7/4)) -> 49.06666667 | AD7: =IF(E$13="binnenbad",$V$32/($AE$89*AH7/4),$V$8/($AE$90*AH7/4)) -> 44.24043716 | AE7: =IF(E$13="binnenbad",$V$32/($AE$89*AH7/4),$V$9/($AE$91*AH7/4)) -> 31.70975057 | AF7: =IF(E$13="binnenbad",$V$32/($AE$89*AH7/4),$V$10/($AE$92*AH7/4)) -> 22.17702448 | AG7: =IF(E$13="binnenbad",$V$32/($AE$89*AH7/4),INT($V$11/($AE$93*AH7/4))) -> 13 | AH7: 49
A8: GEGEVENS VERWARMING EN ZWEMBAD | Q8: feb | R8: 3.2 | S8: 6.1 | T8: 6 | U8: 22 | V8: =(1/Q$50)*(1.5-(E$12/200))*($E$10/50)*23*U8 -> 944.5333333 | W8: =V8/AE90 -> 541.9453552 | X8: 944.5333333 | Y8: =X8/10 -> 94.45333333 | Z8: 6 | AA8: 0 | AC8: 50.08888889 | AD8: 45.16211293 | AE8: 32.37037037 | AF8: 22.63904583 | AG8: =IF(E$13="binnenbad",$V$32/($AE$89*AH8/4),INT($V$11/($AE$93*AH8/4))) -> 13 | AH8: 48 | BX8: 1 | BY8: ECO 3 | BZ8: 3 kW | CA8: ZVWX4012 | CC8: Harmo Pac | CD8: 7 kW | CE8: ZVWX1017 | CG8: Harmo Powerpac | CH8: 7 kW | CI8: ZVWX3100 | CL8: 1 | CM8: ECO 3 | CN8: 3 kW | CO8: ZVWX4012 | CQ8: Harmo Pac | CR8: 7 kW | CS8: ZVWX1017 | CU8: Harmo Powerpac | CV8: 7 kW | CW8: ZVWX3100 | CY8: ZVWX4052 | CZ8: Zwembad.eu / Verwarming / Warmtepomp / Harmo ECO | DA8: http://www.zwembad.eu/verwarming/warmtepomp/harmo-eco-p3030
Q9: Maart | R9: 5.7 | S9: 9.1 | T9: 9 | U9: 19 | V9: =(1/Q$50)*(1.5-(E$12/200))*($E$10/50)*23*U9 -> 815.7333333 | W9: 388.4444444 | X9: 815.7333333 | Y9: 81.57333333 | Z9: 9 | AA9: 0 | AC9: 51.15460993 | AD9: 46.12300895 | AE9: 33.05910165 | AF9: 23.12072765 | AG9: 14 | AH9: 47 | BX9: 2 | BY9: ECO 3 | BZ9: 3 kW | CA9: ZVWX4012 | CC9: Harmo Pac | CD9: 7 kW | CE9: ZVWX1017 | CG9: Harmo Powerpac | CH9: 7 kW | CI9: ZVWX3100 | CL9: 2 | CM9: ECO 3 | CN9: 3 kW | CO9: ZVWX4012 | CQ9: Harmo Pac | CR9: 7 kW | CS9: ZVWX1017 | CU9: Harmo Powerpac | CV9: 7 kW | CW9: ZVWX3100 | CY9: ZVWX4032 | CZ9: Zwembad.eu / Verwarming / Warmtepomp / Harmo ECO | DA9: http://www.zwembad.eu/verwarming/warmtepomp/harmo-eco-p3031
A10: Zwembad inhoud | E10: 140 | F10: m³ | Q10: April | R10: 8.7 | S10: 12.7 | T10: 12 | U10: 16 | V10: =(1/Q$50)*(1.5-(E$12/200))*($E$10/50)*23*U10 -> 686.9333333 | W10: 271.6685499 | X10: 686.9333333 | Y10: 68.69333333 | Z10: 12 | AA10: 1.5 | AC10: 52.26666667 | AD10: 47.12568306 | AE10: 33.77777778 | AF10: 23.62335217 | AG10: 14 | AH10: 46 | BX10: 3 | BY10: ECO 3 | BZ10: 3 kW | CA10: ZVWX4012 | CC10: Harmo Pac | CD10: 7 kW | CE10: ZVWX1017 | CG10: Harmo Powerpac | CH10: 7 kW | CI10: ZVWX3100 | CL10: 3 | CM10: ECO 3 | CN10: 3 kW | CO10: ZVWX4012 | CQ10: Harmo Pac | CR10: 7 kW | CS10: ZVWX1017 | CU10: Harmo Powerpac | CV10: 7 kW | CW10: ZVWX3100 | CY10: ZVWX4022 | CZ10: Zwembad.eu / Verwarming / Warmtepomp / Harmo ECO | DA10: http://www.zwembad.eu/verwarming/warmtepomp/harmo-eco-p3032
A11: Gewenste watertemperatuur | E11: 28 | F11: graden C | Q11: Mei | R11: 12.7 | S11: 16.2 | T11: 16 | U11: 12 | V11: 515.2 | W11: 166.1935484 | X11: 515.2 | Y11: 51.52 | Z11: 16 | AA11: 3 | AC11: 53.42814815 | AD11: 48.17292046 | AE11: 34.52839506 | AF11: 24.14831555 | AG11: 14 | AH11: 45 | BX11: 4 | BY11: ECO 5 | BZ11: 5 kW | CA11: ZVWX4022 | CC11: Harmo Pac | CD11: 7 kW | CE11: ZVWX1017 | CG11: Harmo Powerpac | CH11: 7 kW | CI11: ZVWX3100 | CL11: 4 | CM11: ECO 5 | CN11: 5 kW | CO11: ZVWX4022 | CQ11: Harmo Pac | CR11: 7 kW | CS11: ZVWX1017 | CU11: Harmo Powerpac | CV11: 7 kW | CW11: ZVWX3100 | CY11: ZVWX4012 | CZ11: Zwembad.eu / Verwarming / Warmtepomp / Harmo ECO | DA11: http://www.zwembad.eu/verwarming/warmtepomp/harmo-eco-p3033
A12: % ingebouwd | E12: 100 | F12: % (0% = opbouw) | Q12: Juni | R12: 15.7 | S12: 19.8 | T12: 20 | U12: 8 | V12: 343.4666667 | W12: 97.33873144 | X12: 343.4666667 | Y12: 34.34666667 | Z12: 20 | AA12: 5 | AC12: 54.64242424 | AD12: 49.26775956 | AE12: 35.31313131 | AF12: 24.6971409 | AG12: 15 | AH12: 44 | BX12: 5 | BY12: ECO 5 | BZ12: 5 kW | CA12: ZVWX4022 | CC12: Harmo Pac | CD12: 7 kW | CE12: ZVWX1017 | CG12: Harmo Powerpac | CH12: 7 kW | CI12: ZVWX3100 | CL12: 5 | CM12: ECO 5 | CN12: 5 kW | CO12: ZVWX4022 | CQ12: Harmo Pac | CR12: 7 kW | CS12: ZVWX1017 | CU12: Harmo Powerpac | CV12: 7 kW | CW12: ZVWX3100 | CY12: ZVWX3140 | CZ12: Zwembad.eu / Verwarming / Warmtepomp / Harmo Powerpack verticaal | DA12: http://www.zwembad.eu/verwarming/warmtepomp/harmo-powerpack-verticaal-p6789
A13: Bubbelzeil, overkapping, rolldeck of binnenbad ? | E13: Overkapping | Q13: July | R13: 17.2 | S13: 21.8 | T13: 22 | U13: 6 | V13: 257.6 | W13: 68.82442748 | X13: 257.6 | Y13: 25.76 | Z13: 22 | AA13: 5 | AC13: 55.91317829 | AD13: 50.41352141 | AE13: 36.13436693 | AF13: 25.27149301 | AG13: 15 | AH13: 43 | BX13: 6 | BY13: ECO 8 | BZ13: 8 kW | CA13: ZVWX4032 | CC13: Harmo Pac | CD13: 7 kW | CE13: ZVWX1017 | CG13: Harmo Powerpac | CH13: 7 kW | CI13: ZVWX3100 | CL13: 6 | CM13: ECO 8 | CN13: 8 kW | CO13: ZVWX4032 | CQ13: Harmo Pac | CR13: 7 kW | CS13: ZVWX1017 | CU13: Harmo Powerpac | CV13: 7 kW | CW13: ZVWX3100 | CY13: ZVWX3131 | CZ13: Zwembad.eu / Verwarming / Warmtepomp / Harmo Powerpack verticaal | DA13: http://www.zwembad.eu/verwarming/warmtepomp/harmo-powerpack-verticaal-p6790
A14: Wanneer wil je kunnen zwemmen? | N14: =IF(E18="ja","",IF(E17="ja","",IF(E16="ja","",IF(E15="ja","Volgens onze berekening zal de kost om uw zwembad contant van "&B15&" "&D15&" ongeveer "&AI104&" euro per jaar bedragen","")))) ->  | Q14: Aug | R14: 17 | S14: 21.9 | T14: 22 | U14: 6 | V14: 257.6 | W14: 69.35384615 | X14: 257.6 | Y14: =X14/10 -> 25.76 | Z14: 22 | AA14: 5 | AC14: 57.24444444 | AD14: 51.61384335 | AE14: 36.99470899 | AF14: 25.87319523 | AG14: 15 | AH14: 42 | BX14: 7 | BY14: ECO 8 | BZ14: 8 kW | CA14: ZVWX4032 | CC14: Harmo Pac | CD14: 7 kW | CE14: ZVWX1017 | CG14: Harmo Powerpac | CH14: 7 kW | CI14: ZVWX3100 | CL14: 7 | CM14: ECO 8 | CN14: 8 kW | CO14: ZVWX4032 | CQ14: Harmo Pac | CR14: 7 kW | CS14: ZVWX1017 | CU14: Harmo Powerpac | CV14: 7 kW | CW14: ZVWX3100 | CY14: ZVWX3130 | CZ14: Zwembad.eu / Verwarming / Warmtepomp / Harmo Powerpack verticaal | DA14: http://www.zwembad.eu/verwarming/warmtepomp/harmo-powerpack-verticaal-p6791
B15: mei tot en met | D15: september | E15: ja | F15: (ja of neen invullen) | N15: =IF(E19="ja","",IF(E18="ja","",IF(E17="ja","",IF(E16="ja","Volgens onze berekening zal de kost om uw zwembad contant van "&B16&" "&D16&" ongeveer "&AI105&" euro per jaar bedragen","")))) -> Volgens onze berekening zal de kost om uw zwembad contant van april tot en met oktober ongeveer 1774 euro per jaar bedragen | Q15: Sept | R15: 14.4 | S15: 18.9 | T15: 18 | U15: 10 | V15: 429.3333333 | W15: 128.4330484 | X15: 429.3333333 | Y15: =X15/10 -> 42.93333333 | Z15: 18 | AA15: 3 | AC15: 58.64065041 | AD15: 52.87271758 | AE15: 37.89701897 | AF15: 26.50424877 | AG15: 16 | AH15: 41 | BX15: 8 | BY15: ECO 8 | BZ15: 8 kW | CA15: ZVWX4032 | CC15: Harmo Pac | CD15: 10 kW | CE15: ZVWX1022 | CG15: Harmo Powerpac | CH15: 10 kW | CI15: ZVWX3110 | CL15: 8 | CM15: ECO 8 | CN15: 8 kW | CO15: ZVWX4032 | CQ15: Harmo Pac | CR15: 10 kW | CS15: ZVWX1022 | CU15: Harmo Powerpac | CV15: 10 kW | CW15: ZVWX3110 | CY15: ZVWX3125 | CZ15: Zwembad.eu / Verwarming / Warmtepomp / Harmo Powerpack WiFi | DA15: http://www.zwembad.eu/verwarming/warmtepomp/harmo-powerpack-wifi-p6790
B16: april tot en met | D16: oktober | E16: ja | F16: (ja of neen invullen) | Q16: Okt | R16: 10.4 | S16: 14.4 | T16: 15 | U16: 13 | V16: 558.1333333 | W16: 201.3883162 | X16: 558.1333333 | Y16: =X16/10 -> 55.81333333 | Z16: 15 | AA16: 1.5 | AC16: =IF(E$13="binnenbad",$V$32/($AE$89*AH16/4),$V$7/($AE$89*AH16/4)) -> 60.10666667 | AD16: =IF(E$13="binnenbad",$V$32/($AE$89*AH16/4),$V$8/($AE$90*AH16/4)) -> 54.19453552 | AE16: =IF(E$13="binnenbad",$V$32/($AE$89*AH16/4),$V$9/($AE$91*AH16/4)) -> 38.84444444 | AF16: =IF(E$13="binnenbad",$V$32/($AE$89*AH16/4),$V$10/($AE$92*AH16/4)) -> 27.16685499 | AG16: 16 | AH16: 40 | BX16: 9 | BY16: ECO 12 | BZ16: 12 kW | CA16: ZVWX4052 | CC16: Harmo Pac | CD16: 10 kW | CE16: ZVWX1022 | CG16: Harmo Powerpac | CH16: 10 kW | CI16: ZVWX3110 | CL16: 9 | CM16: ECO 12 | CN16: 12 kW | CO16: ZVWX4052 | CQ16: Harmo Pac | CR16: 10 kW | CS16: ZVWX1022 | CU16: Harmo Powerpac | CV16: 10 kW | CW16: ZVWX3110 | CY16: ZVWX3120 | CZ16: Zwembad.eu / Verwarming / Warmtepomp / Harmo Powerpack WiFi | DA16: http://www.zwembad.eu/verwarming/warmtepomp/harmo-powerpack-wifi-p6791
B17: maart tot en met | D17: november | E17: neen | F17: (ja of neen invullen) | Q17: Nov | R17: 6 | S17: 9.2 | T17: 9 | U17: 19 | V17: 815.7333333 | W17: 380.6755556 | X17: 815.7333333 | Y17: =X17/10 -> 81.57333333 | Z17: 9 | AA17: 0 | AC17: 61.64786325 | AD17: 55.58413899 | AE17: 39.84045584 | AF17: 27.86344102 | AG17: 17 | AH17: 39 | BX17: 10 | BY17: ECO 12 | BZ17: 12 kW | CA17: ZVWX4052 | CC17: Harmo Pac | CD17: 10 kW | CE17: ZVWX1022 | CG17: Harmo Powerpac | CH17: 10 kW | CI17: ZVWX3110 | CL17: 10 | CM17: ECO 12 | CN17: 12 kW | CO17: ZVWX4052 | CQ17: Harmo Pac | CR17: 10 kW | CS17: ZVWX1022 | CU17: Harmo Powerpac | CV17: 10 kW | CW17: ZVWX3110 | CY17: ZVWX3110 | CZ17: Zwembad.eu / Verwarming / Warmtepomp / Harmo Powerpack | DA17: http://www.zwembad.eu/verwarming/warmtepomp/harmo-powerpack-p3078
B18: jan tot en met | D18: december | E18: neen | F18: (ja of neen invullen) | N18: =N14&N15&N16&N17 -> Volgens onze berekening zal de kost om uw zwembad contant van april tot en met oktober ongeveer 1774 euro per jaar bedragen | Q18: Dec | R18: 3.4 | S18: 6 | T18: 6 | U18: 22 | V18: 944.5333333 | W18: 533.2043011 | X18: 944.5333333 | Y18: =X18/10 -> 94.45333333 | Z18: 6 | AA18: 0 | AC18: 63.27017544 | AD18: 57.04687949 | AE18: 40.88888889 | AF18: 28.59668946 | AG18: 17 | AH18: 38 | BX18: 11 | BY18: ECO 12 | BZ18: 12 kW | CA18: ZVWX4052 | CC18: Harmo Pac | CD18: 13 kW | CE18: ZVWX1032 | CG18: Harmo Powerpack WIFI | CH18: 14 kW | CI18: ZVWX3120 | CL18: 11 | CM18: ECO 12 | CN18: 12 kW | CO18: ZVWX4052 | CQ18: Harmo Pac | CR18: 13 kW | CS18: ZVWX1032 | CU18: Harmo Powerpack WIFI | CV18: 14 kW | CW18: ZVWX3120 | CY18: ZVWX3100 | CZ18: Zwembad.eu / Verwarming / Warmtepomp / Harmo Powerpack | DA18: http://www.zwembad.eu/verwarming/warmtepomp/harmo-powerpack-p3078
AC19: 64.98018018 | AD19: 58.58868705 | AE19: 41.99399399 | AF19: 29.36957296 | AG19: 17 | AH19: 37 | BX19: 12 | BY19: ECO 12 | BZ19: 12 kW | CA19: ZVWX4052 | CC19: Harmo Pac | CD19: 13 kW | CE19: ZVWX1032 | CG19: Harmo Powerpack WIFI | CH19: 14 kW | CI19: ZVWX3120 | CL19: 12 | CM19: ECO 12 | CN19: 12 kW | CO19: ZVWX4052 | CQ19: Harmo Pac | CR19: 13 kW | CS19: ZVWX1032 | CU19: Harmo Powerpack WIFI | CV19: 14 kW | CW19: ZVWX3120 | CY19: ZVWX1061 | CZ19: Zwembad.eu / Verwarming / Warmtepomp / Harmo PAC verticaal | DA19: http://www.zwembad.eu/verwarming/warmtepomp/harmo-pac-verticaal-p6788
AC20: 66.78518519 | AD20: 60.21615058 | AE20: 43.16049383 | AF20: 30.18539443 | AG20: 18 | AH20: 36 | BX20: 13 | BY20: Harmo Pac | BZ20: 18 kW | CA20: ZVWX1041 | CC20: Harmo Pac | CD20: 13 kW | CE20: ZVWX1032 | CG20: Harmo Powerpack WIFI | CH20: 14 kW | CI20: ZVWX3120 | CL20: 13 | CM20: Harmo Pac | CN20: 18 kW | CO20: ZVWX1041 | CQ20: Harmo Pac | CR20: 13 kW | CS20: ZVWX1032 | CU20: Harmo Powerpack WIFI | CV20: 14 kW | CW20: ZVWX3120 | CY20: ZVWX1056 | CZ20: Zwembad.eu / Verwarming / Warmtepomp / Harmo PAC verticaal | DA20: http://www.zwembad.eu/verwarming/warmtepomp/harmo-pac-verticaal-p6788
A21: Heeft U zonneverwarming ? | E21: neen | F21: (ja of neen invullen) | S21: 100 | T21: 1 | AC21: 68.69333333 | AD21: 61.93661202 | AE21: 44.39365079 | AF21: 31.04783427 | AG21: 18 | AH21: 35 | BX21: 14 | BY21: Harmo Pac | BZ21: 18 kW | CA21: ZVWX1041 | CC21: Harmo Pac | CD21: 18 kW | CE21: ZVWX1041 | CG21: Harmo Powerpack WIFI | CH21: 14 kW | CI21: ZVWX3120 | CL21: 14 | CM21: Harmo Pac | CN21: 18 kW | CO21: ZVWX1041 | CQ21: Harmo Pac | CR21: 18 kW | CS21: ZVWX1041 | CU21: Harmo Powerpack WIFI | CV21: 14 kW | CW21: ZVWX3120 | CY21: ZVWX1055 | CZ21: Zwembad.eu / Verwarming / Warmtepomp / Harmo PAC verticaal | DA21: http://www.zwembad.eu/verwarming/warmtepomp/harmo-pac-verticaal-p6788
A22: % oppervlakte zwembadverwarming | E22: 0 | F22: % | S22: 50 | T22: 1.25 | AC22: 70.71372549 | AD22: 63.75827708 | AE22: 45.69934641 | AF22: 31.96100587 | AG22: 19 | AH22: 34 | BX22: 15 | BY22: Harmo Pac | BZ22: 18 kW | CA22: ZVWX1041 | CC22: Harmo Pac | CD22: 18 kW | CE22: ZVWX1041 | CG22: Harmo Powerpack WIFI | CH22: 19 kW | CI22: ZVWX3125 | CL22: 15 | CM22: Harmo Pac | CN22: 18 kW | CO22: ZVWX1041 | CQ22: Harmo Pac | CR22: 18 kW | CS22: ZVWX1041 | CU22: Harmo Powerpack WIFI | CV22: 19 kW | CW22: ZVWX3125 | CY22: ZVWX1041 | CZ22: Zwembad.eu / Verwarming / Warmtepomp / Harmo PAC verticaal | DA22: http://www.zwembad.eu/verwarming/warmtepomp/harmo-pac-verticaal-p6788
S23: 0 | T23: 1.5 | AC23: 72.85656566 | AD23: 65.69034608 | AE23: 47.08417508 | AF23: 32.9295212 | AG23: 20 | AH23: 33 | BX23: 16 | BY23: Harmo Pac | BZ23: 18 kW | CA23: ZVWX1041 | CC23: Harmo Pac | CD23: 18 kW | CE23: ZVWX1041 | CG23: Harmo Powerpack WIFI | CH23: 19 kW | CI23: ZVWX3125 | CL23: 16 | CM23: Harmo Pac | CN23: 18 kW | CO23: ZVWX1041 | CQ23: Harmo Pac | CR23: 18 kW | CS23: ZVWX1041 | CU23: Harmo Powerpack WIFI | CV23: 19 kW | CW23: ZVWX3125 | CY23: ZVWX1032 | CZ23: Zwembad.eu / Verwarming / Warmtepomp / Harmo PAC | DA23: http://www.zwembad.eu/verwarming/warmtepomp/harmo-pac-p3076
A24: Heeft u 380V (trifasé) of 230V mono ? | E24: 230V mono | AC24: 75.13333333 | AD24: 67.7431694 | AE24: 48.55555556 | AF24: 33.95856874 | AG24: 20 | AH24: 32 | BX24: 17 | BY24: Harmo Pac | BZ24: 18 kW | CA24: ZVWX1041 | CC24: Harmo Pac | CD24: 18 kW | CE24: ZVWX1041 | CG24: Harmo Powerpack WIFI | CH24: 19 kW | CI24: ZVWX3125 | CL24: 17 | CM24: Harmo Pac | CN24: 18 kW | CO24: ZVWX1041 | CQ24: Harmo Pac | CR24: 18 kW | CS24: ZVWX1041 | CU24: Harmo Powerpack WIFI | CV24: 19 kW | CW24: ZVWX3125 | CY24: ZVWX1022 | CZ24: Zwembad.eu / Verwarming / Warmtepomp / Harmo PAC | DA24: http://www.zwembad.eu/verwarming/warmtepomp/harmo-pac-p3076
AC25: 77.55698925 | AD25: 69.92843293 | AE25: 50.1218638 | AF25: 35.05400644 | AG25: 21 | AH25: 31 | BX25: 18 | BY25: Harmo Pac | BZ25: 18 kW | CA25: ZVWX1041 | CC25: Harmo Pac | CD25: 18 kW | CE25: ZVWX1041 | CG25: Harmo Powerpack WIFI | CH25: 19 kW | CI25: ZVWX3125 | CL25: 18 | CM25: Harmo Pac | CN25: 18 kW | CO25: ZVWX1041 | CQ25: Harmo Pac | CR25: 18 kW | CS25: ZVWX1041 | CU25: Harmo Powerpack WIFI | CV25: 19 kW | CW25: ZVWX3125 | CY25: ZVWX1017 | CZ25: Zwembad.eu / Verwarming / Warmtepomp / Harmo PAC
A26: Welk type warmtepomp wil u ? | E26: Beste kwaliteit , laagste energieverbruik bruikbaar het hele jaar. | Q26: COP warmtepomp bij 26 graden | S26: 5 | V26: Prijs 1 kWh dag | X26: 0.07 | AC26: 80.14222222 | AD26: 72.25938069 | AE26: 51.79259259 | AF26: 36.22247332 | AG26: 22 | AH26: 30 | BX26: 19 | BY26: Harmo Pac | BZ26: 22 kW | CA26: ZVWX1055 | CC26: Harmo Pac | CD26: 22 kW | CE26: ZVWX1055 | CG26: Harmo Powerpack WIFI | CH26: 19 kW | CI26: ZVWX3125 | CL26: 19 | CM26: Harmo Pac | CN26: 22 kW trifasé | CO26: ZVWX3130 | CQ26: Harmo Pac | CR26: 22 kW trifasé | CS26: ZVWX1056 | CU26: Harmo Powerpack WIFI | CV26: 19 kW | CW26: ZVWX3125
Q27: COP warmtepomp bij 5 graden | S27: 2 | V27: Prijs 1 kWh nacht | X27: 0.05 | Y27: euro/kWh | AC27: 82.90574713 | AD27: 74.75108347 | AE27: 53.57854406 | AF27: 37.47152412 | AG27: 22 | AH27: 29 | BX27: 20 | BY27: Harmo Pac | BZ27: 22 kW | CA27: ZVWX1055 | CC27: Harmo Pac | CD27: 22 kW | CE27: ZVWX1055 | CG27: Harmo Powerpac | CH27: 22 kW | CI27: ZVWX3131 | CL27: 20 | CM27: Harmo Pac | CN27: 22 kW trifasé | CO27: ZVWX3130 | CQ27: Harmo Pac | CR27: 22 kW trifasé | CS27: ZVWX1056 | CU27: Harmo Powerpac | CV27: 22 kW trifasé | CW27: ZVWX3130
AC28: 85.86666667 | AD28: 77.42076503 | AE28: 55.49206349 | AF28: 38.80979284 | AG28: 23 | AH28: 28 | BX28: 21 | BY28: Harmo Pac | BZ28: 22 kW | CA28: ZVWX1055 | CC28: Harmo Pac | CD28: 22 kW | CE28: ZVWX1055 | CG28: Harmo Powerpac | CH28: 22 kW | CI28: ZVWX3131 | CL28: 21 | CM28: Harmo Pac | CN28: 22 kW trifasé | CO28: ZVWX3130 | CQ28: Harmo Pac | CR28: 22 kW trifasé | CS28: ZVWX1056 | CU28: Harmo Powerpac | CV28: 22 kW trifasé | CW28: ZVWX3130
C29: ONS ADVIES : | AC29: 89.04691358 | AD29: 80.28820077 | AE29: 57.5473251 | AF29: 40.24719258 | AG29: 24 | AH29: 27 | BX29: 22 | BY29: Harmo Pac | BZ29: 22 kW | CA29: ZVWX1055 | CC29: Harmo Pac | CD29: 22 kW | CE29: ZVWX1055 | CG29: Harmo Powerpac | CH29: 22 kW | CI29: ZVWX3131 | CL29: 22 | CM29: Harmo Pac | CN29: 22 kW trifasé | CO29: ZVWX3130 | CQ29: Harmo Pac | CR29: 22 kW trifasé | CS29: ZVWX1056 | CU29: Harmo Powerpac | CV29: 22 kW trifasé | CW29: ZVWX3130
AC30: 92.47179487 | AD30: 83.37620849 | AE30: 59.76068376 | AF30: 41.79516152 | AG30: 25 | AH30: 26 | BX30: 23 | BY30: Harmo Pac | BZ30: 22 kW | CA30: ZVWX1055 | CC30: Harmo Pac | CD30: 22 kW | CE30: ZVWX1055 | CG30: Harmo Powerpac | CH30: 22 kW | CI30: ZVWX3131 | CL30: 23 | CM30: Harmo Pac | CN30: 22 kW trifasé | CO30: ZVWX3130 | CQ30: Harmo Pac | CR30: 26 kW trifasé | CS30: ZVWX1061 | CU30: Harmo Powerpac | CV30: 30kW trifasé | CW30: ZVWX3140
C31: U heeft een warmtepomp nodig van minstens | E31: =IF(E18="ja",VLOOKUP(30,AC6:AH85,6,TRUE)/Q50,IF(E17="ja",VLOOKUP(30,AE6:AH85,4,TRUE)/Q50,IF(E16="ja",VLOOKUP(30,AF6:AH85,3,TRUE)/Q50,IF(E15="ja",VLOOKUP(30,AG6:AH85,2,TRUE)/Q50,"blub")))) -> 24.66666667 | F31: kW | AC31: 96.17066667 | AD31: 86.71125683 | AE31: 62.15111111 | AF31: 43.46696798 | AG31: 26 | AH31: 25 | BX31: 24 | BY31: Harmo Pac | BZ31: 22 kW | CA31: ZVWX1055 | CC31: Harmo Pac | CD31: 22 kW | CE31: ZVWX1055 | CG31: Harmo Powerpac | CH31: 22 kW | CI31: ZVWX3131 | CL31: 24 | CM31: Harmo Pac | CN31: 22 kW trifasé | CO31: ZVWX3130 | CQ31: Harmo Pac | CR31: 26 kW trifasé | CS31: ZVWX1061 | CU31: Harmo Powerpac | CV31: 30kW trifasé | CW31: ZVWX3140
Q32: Jan | R32: 20 | S32: 20 | T32: 17 | U32: =$E$11-T32 -> 11 | V32: =IF($E$13="ja",0.7*(-0.009*$E$12+2)*($E$10/50)*11.66*U32+0.0311,(-0.009*$E$12+2)*($E$10/50)*11.66*U32+0.0311) -> 395.0719 | W32: =V32/AE89 -> 240.4785478 | X32: =V32 -> 395.0719 | Y32: =X32/10 -> 39.50719 | Z32: 5 | AA32: 0 | AC32: 100.1777778 | AD32: 90.32422587 | AE32: 64.74074074 | AF32: 45.27809165 | AG32: 27 | AH32: 24 | BX32: 25 | BY32: Harmo Pac | BZ32: 22 kW | CA32: ZVWX1055 | CC32: Harmo Pac | CD32: 22 kW | CE32: ZVWX1055 | CG32: Harmo Powerpac | CH32: 22 kW | CI32: ZVWX3131 | CL32: 25 | CM32: Harmo Pac | CN32: 22 kW trifasé | CO32: ZVWX3130 | CQ32: Harmo Pac | CR32: 26 kW trifasé | CS32: ZVWX1061 | CU32: Harmo Powerpac | CV32: 30kW trifasé | CW32: ZVWX3140
C33: =INT(E31+0.5)&" kW verwarmt "&E10&" m³ water "&INT(1000*E31*1*1*859/(E10*1000))/1000&" graden in "&1&" uur" -> 25 kW verwarmt 140 m³ water 0,151 graden in 1 uur | Q33: feb | R33: 20 | S33: 20 | T33: 17 | U33: 11 | V33: 395.0719 | W33: =V33/AE90 -> 226.6805984 | X33: 395.0719 | Y33: =X33/10 -> 39.50719 | Z33: 6 | AA33: 0 | AC33: 104.5333333 | AD33: 94.25136612 | AE33: 67.55555556 | AF33: 47.24670433 | AG33: 28 | AH33: 23 | BX33: 26 | BY33: Sorry, via deze weg kunnen wij geen AANBEVELING maken voor een warmtepomp. Contacteer ons via info@zwembad.eu | BZ33: - | CA33: - | CC33: Sorry, via deze weg kunnen wij geen AANBEVELING maken voor een warmtepomp. Contacteer ons via info@zwembad.eu | CD33: - | CE33: - | CG33: Sorry, via deze weg kunnen wij geen AANBEVELING maken voor een warmtepomp. Contacteer ons via info@zwembad.eu | CH33: - | CI33: - | CL33: 26 | CM33: Harmo Pac | CN33: 26 kW trifasé | CO33: ZVWX1061 | CQ33: Harmo Pac | CR33: 26 kW trifasé | CS33: ZVWX1061 | CU33: Harmo Powerpac | CV33: 30kW trifasé | CW33: ZVWX3140
C34: =N18 -> Volgens onze berekening zal de kost om uw zwembad contant van april tot en met oktober ongeveer 1774 euro per jaar bedragen | Q34: Maart | R34: 20 | S34: 20 | T34: 17 | U34: 11 | V34: 395.0719 | W34: =V34/AE91 -> 188.1294762 | X34: 395.0719 | Y34: 39.50719 | Z34: 9 | AA34: 0 | AC34: 109.2848485 | AD34: 98.53551913 | AE34: 70.62626263 | AF34: 49.3942818 | AG34: 30 | AH34: 22 | BX34: 27 | BY34: Sorry, via deze weg kunnen wij geen AANBEVELING maken voor een warmtepomp. Contacteer ons via info@zwembad.eu | BZ34: - | CA34: - | CC34: Sorry, via deze weg kunnen wij geen AANBEVELING maken voor een warmtepomp. Contacteer ons via info@zwembad.eu | CD34: - | CE34: - | CG34: Sorry, via deze weg kunnen wij geen AANBEVELING maken voor een warmtepomp. Contacteer ons via info@zwembad.eu | CH34: - | CI34: - | CL34: 27 | CM34: Harmo Pac | CN34: 26 kW trifasé | CO34: ZVWX1061 | CQ34: Harmo Pac | CR34: 26 kW trifasé | CS34: ZVWX1061 | CU34: Harmo Powerpac | CV34: 30kW trifasé | CW34: ZVWX3140
Q35: April | R35: 20 | S35: 20 | T35: 17 | U35: 11 | V35: 395.0719 | W35: 156.2431243 | X35: 395.0719 | Y35: 39.50719 | Z35: 12 | AA35: 1.5 | AC35: 114.4888889 | AD35: 103.2276867 | AE35: 73.98941799 | AF35: 51.74639046 | AG35: 31 | AH35: 21 | BX35: 28 | BY35: Sorry, via deze weg kunnen wij geen AANBEVELING maken voor een warmtepomp. Contacteer ons via info@zwembad.eu | BZ35: - | CA35: - | CC35: Sorry, via deze weg kunnen wij geen AANBEVELING maken voor een warmtepomp. Contacteer ons via info@zwembad.eu | CD35: - | CE35: - | CG35: Sorry, via deze weg kunnen wij geen AANBEVELING maken voor een warmtepomp. Contacteer ons via info@zwembad.eu | CH35: - | CI35: - | CL35: 28 | CM35: Harmo Pac | CN35: 26 kW trifasé | CO35: ZVWX1061 | CQ35: Harmo Pac | CR35: 26 kW trifasé | CS35: ZVWX1061 | CU35: Harmo Powerpac | CV35: 30kW trifasé | CW35: ZVWX3140
Q36: Mei | R36: 20 | S36: 20 | T36: 17 | U36: 11 | V36: 395.0719 | W36: 127.4425484 | X36: 395.0719 | Y36: 39.50719 | Z36: 16 | AA36: 3 | AC36: 120.2133333 | AD36: 108.389071 | AE36: 77.68888889 | AF36: 54.33370998 | AG36: 33 | AH36: 20 | BX36: 29 | BY36: Sorry, via deze weg kunnen wij geen AANBEVELING maken voor een warmtepomp. Contacteer ons via info@zwembad.eu | BZ36: - | CA36: - | CC36: Sorry, via deze weg kunnen wij geen AANBEVELING maken voor een warmtepomp. Contacteer ons via info@zwembad.eu | CD36: - | CE36: - | CG36: Sorry, via deze weg kunnen wij geen AANBEVELING maken voor een warmtepomp. Contacteer ons via info@zwembad.eu | CH36: - | CI36: - | CL36: 29 | CM36: Harmo Pac | CN36: 26 kW trifasé | CO36: ZVWX1061 | CQ36: Harmo Pac | CR36: 26 kW trifasé | CS36: ZVWX1061 | CU36: Harmo Powerpac | CV36: 30kW trifasé | CW36: ZVWX3140
C37: Wij bevelen u volgende warmtepomp aan : | E37: =IF($E$31>49,"Sorry, via deze weg kunnen wij geen AANBEVELING maken voor een warmtepomp. Contacteer ons via info@zwembad.eu",IF($E$24="230V mono",UPPER(P65),UPPER(P66))) -> ZVWX3131 | F37: =IF($E$31>49,"Sorry, via deze weg kunnen wij geen AANBEVELING maken voor een warmtepomp. Contacteer ons via info@zwembad.eu",IF($E$24="230V mono",UPPER(Q65),UPPER(Q66))) -> 22 KW | G37: =IF($E$31>49,"Sorry, via deze weg kunnen wij geen AANBEVELING maken voor een warmtepomp. Contacteer ons via info@zwembad.eu",IF($E$24="230V mono",UPPER(R65),UPPER(R66))) -> HARMO POWERPAC | Q37: Juni | R37: 20 | S37: 20 | T37: 17 | U37: 11 | V37: 395.0719 | W37: 111.9636964 | X37: 395.0719 | Y37: 39.50719 | Z37: 20 | AA37: 5 | AC37: 126.5403509 | AD37: 114.093759 | AE37: 81.77777778 | AF37: 57.19337893 | AG37: 34 | AH37: 19 | BX37: 30 | BY37: Sorry, via deze weg kunnen wij geen AANBEVELING maken voor een warmtepomp. Contacteer ons via info@zwembad.eu | BZ37: - | CA37: - | CC37: Sorry, via deze weg kunnen wij geen AANBEVELING maken voor een warmtepomp. Contacteer ons via info@zwembad.eu | CD37: - | CE37: - | CG37: Sorry, via deze weg kunnen wij geen AANBEVELING maken voor een warmtepomp. Contacteer ons via info@zwembad.eu | CH37: - | CI37: - | CL37: 30 | CM37: Harmo Powerpac | CN37: 30kW trifasé | CO37: ZVWX3140 | CQ37: Harmo Powerpac | CR37: 30kW trifasé | CS37: ZVWX3140 | CU37: Harmo Powerpac | CV37: 30kW trifasé | CW37: ZVWX3140
Q38: July | R38: 20 | S38: 20 | T38: 17 | U38: 11 | V38: 395.0719 | W38: 105.5535611 | X38: 395.0719 | Y38: 39.50719 | Z38: 22 | AA38: 5 | AC38: 133.5703704 | AD38: 120.4323012 | AE38: 86.32098765 | AF38: 60.37078887 | AG38: 36 | AH38: 18 | BX38: 31 | BY38: Sorry, via deze weg kunnen wij geen AANBEVELING maken voor een warmtepomp. Contacteer ons via info@zwembad.eu | BZ38: - | CA38: - | CC38: Sorry, via deze weg kunnen wij geen AANBEVELING maken voor een warmtepomp. Contacteer ons via info@zwembad.eu | CD38: - | CE38: - | CG38: Sorry, via deze weg kunnen wij geen AANBEVELING maken voor een warmtepomp. Contacteer ons via info@zwembad.eu | CH38: - | CI38: - | CL38: 31 | CM38: Harmo Powerpac | CN38: 30kW trifasé | CO38: ZVWX3140 | CQ38: Harmo Powerpac | CR38: 30kW trifasé | CS38: ZVWX3140 | CU38: Harmo Powerpac | CV38: 30kW trifasé | CW38: ZVWX3140
Q39: Aug | R39: 20 | S39: 20 | T39: 17 | U39: 11 | V39: 395.0719 | W39: 106.3655115 | X39: 395.0719 | Y39: =X39/10 -> 39.50719 | Z39: 22 | AA39: 5 | AC39: 141.427451 | AD39: 127.5165542 | AE39: 91.39869281 | AF39: 63.92201174 | AG39: 39 | AH39: 17 | BX39: 32 | BY39: Sorry, via deze weg kunnen wij geen AANBEVELING maken voor een warmtepomp. Contacteer ons via info@zwembad.eu | BZ39: - | CA39: - | CC39: Sorry, via deze weg kunnen wij geen AANBEVELING maken voor een warmtepomp. Contacteer ons via info@zwembad.eu | CD39: - | CE39: - | CG39: Sorry, via deze weg kunnen wij geen AANBEVELING maken voor een warmtepomp. Contacteer ons via info@zwembad.eu | CH39: - | CI39: - | CL39: 32 | CM39: Harmo Powerpac | CN39: 30kW trifasé | CO39: ZVWX3140 | CQ39: Harmo Powerpac | CR39: 30kW trifasé | CS39: ZVWX3140 | CU39: Harmo Powerpac | CV39: 30kW trifasé | CW39: ZVWX3140
Q40: Sept | R40: 20 | S40: 20 | T40: 17 | U40: 11 | V40: 395.0719 | W40: 118.1839017 | X40: 395.0719 | Y40: =X40/10 -> 39.50719 | Z40: 18 | AA40: 3 | AC40: 150.2666667 | AD40: 135.4863388 | AE40: 97.11111111 | AF40: 67.91713748 | AG40: 41 | AH40: 16 | BX40: 33 | BY40: Sorry, via deze weg kunnen wij geen AANBEVELING maken voor een warmtepomp. Contacteer ons via info@zwembad.eu | BZ40: - | CA40: - | CC40: Sorry, via deze weg kunnen wij geen AANBEVELING maken voor een warmtepomp. Contacteer ons via info@zwembad.eu | CD40: - | CE40: - | CG40: Sorry, via deze weg kunnen wij geen AANBEVELING maken voor een warmtepomp. Contacteer ons via info@zwembad.eu | CH40: - | CI40: - | CL40: 33 | CM40: Harmo Powerpac | CN40: 30kW trifasé | CO40: ZVWX3140 | CQ40: Harmo Powerpac | CR40: 30kW trifasé | CS40: ZVWX3140 | CU40: Harmo Powerpac | CV40: 30kW trifasé | CW40: ZVWX3140
C41: Klik hier om deze warmtepomp in uw winkelmandje te leggen, surft u naar : | G41: =VLOOKUP(E37,CY6:CZ30,2,FALSE) -> Zwembad.eu / Verwarming / Warmtepomp / Harmo Powerpack verticaal | Q41: Okt | R41: 20 | S41: 20 | T41: 17 | U41: 11 | V41: 395.0719 | W41: 142.5517165 | X41: 395.0719 | Y41: =X41/10 -> 39.50719 | Z41: 15 | AA41: 1.5 | AC41: 160.2844444 | AD41: 144.5187614 | AE41: 103.5851852 | AF41: 72.44494664 | AG41: 44 | AH41: 15 | BX41: 34 | BY41: Sorry, via deze weg kunnen wij geen AANBEVELING maken voor een warmtepomp. Contacteer ons via info@zwembad.eu | BZ41: - | CA41: - | CC41: Sorry, via deze weg kunnen wij geen AANBEVELING maken voor een warmtepomp. Contacteer ons via info@zwembad.eu | CD41: - | CE41: - | CG41: Sorry, via deze weg kunnen wij geen AANBEVELING maken voor een warmtepomp. Contacteer ons via info@zwembad.eu | CH41: - | CI41: - | CL41: 34 | CM41: Harmo Powerpac | CN41: 30kW trifasé | CO41: ZVWX3140 | CQ41: Harmo Powerpac | CR41: 30kW trifasé | CS41: ZVWX3140 | CU41: Harmo Powerpac | CV41: 30kW trifasé | CW41: ZVWX3140
Q42: Nov | R42: 20 | S42: 20 | T42: 17 | U42: =$E$11-T42 -> 11 | V42: =IF($E$13="ja",0.7*(-0.009*$E$12+2)*($E$10/50)*11.66*U42+0.0311,(-0.009*$E$12+2)*($E$10/50)*11.66*U42+0.0311) -> 395.0719 | W42: =V42/AE99 -> 184.3668867 | X42: =V42 -> 395.0719 | Y42: =X42/10 -> 39.50719 | Z42: 9 | AA42: 0 | AC42: 171.7333333 | AD42: 154.8415301 | AE42: 110.984127 | AF42: 77.61958569 | AG42: 47 | AH42: 14 | BX42: 35 | BY42: Sorry, via deze weg kunnen wij geen AANBEVELING maken voor een warmtepomp. Contacteer ons via info@zwembad.eu | BZ42: - | CA42: - | CC42: Sorry, via deze weg kunnen wij geen AANBEVELING maken voor een warmtepomp. Contacteer ons via info@zwembad.eu | CD42: - | CE42: - | CG42: Sorry, via deze weg kunnen wij geen AANBEVELING maken voor een warmtepomp. Contacteer ons via info@zwembad.eu | CH42: - | CI42: - | CL42: 35 | CM42: Harmo Powerpac | CN42: 30kW trifasé | CO42: ZVWX3140 | CQ42: Harmo Powerpac | CR42: 30kW trifasé | CS42: ZVWX3140 | CU42: Harmo Powerpac | CV42: 30kW trifasé | CW42: ZVWX3140
Q43: Dec | R43: 20 | S43: 20 | T43: 17 | U43: 11 | V43: 395.0719 | W43: 223.0244597 | X43: 395.0719 | Y43: =X43/10 -> 39.50719 | Z43: 6 | AA43: 0 | AC43: 184.9435897 | AD43: 166.752417 | AE43: 119.5213675 | AF43: 83.59032305 | AG43: 51 | AH43: 13 | BX43: 36 | BY43: Sorry, via deze weg kunnen wij geen AANBEVELING maken voor een warmtepomp. Contacteer ons via info@zwembad.eu | BZ43: - | CA43: - | CC43: Sorry, via deze weg kunnen wij geen AANBEVELING maken voor een warmtepomp. Contacteer ons via info@zwembad.eu | CD43: - | CE43: - | CG43: Sorry, via deze weg kunnen wij geen AANBEVELING maken voor een warmtepomp. Contacteer ons via info@zwembad.eu | CH43: - | CI43: - | CL43: 36 | CM43: Harmo Powerpac | CN43: 30kW trifasé | CO43: ZVWX3140 | CQ43: Harmo Powerpac | CR43: 30kW trifasé | CS43: ZVWX3140 | CU43: Harmo Powerpac | CV43: 30kW trifasé | CW43: ZVWX3140
AC44: 200.3555556 | AD44: 180.6484517 | AE44: 129.4814815 | AF44: 90.5561833 | AG44: 55 | AH44: 12 | BX44: 37 | BY44: Sorry, via deze weg kunnen wij geen AANBEVELING maken voor een warmtepomp. Contacteer ons via info@zwembad.eu | BZ44: - | CA44: - | CC44: Sorry, via deze weg kunnen wij geen AANBEVELING maken voor een warmtepomp. Contacteer ons via info@zwembad.eu | CD44: - | CE44: - | CG44: Sorry, via deze weg kunnen wij geen AANBEVELING maken voor een warmtepomp. Contacteer ons via info@zwembad.eu | CH44: - | CI44: - | CL44: 37 | CM44: Harmo Powerpac | CN44: 30kW trifasé | CO44: ZVWX3140 | CQ44: Harmo Powerpac | CR44: 30kW trifasé | CS44: ZVWX3140 | CU44: Harmo Powerpac | CV44: 30kW trifasé | CW44: ZVWX3140
AC45: 218.569697 | AD45: 197.0710383 | AE45: 141.2525253 | AF45: 98.7885636 | AG45: 60 | AH45: 11 | BX45: 38 | BY45: Sorry, via deze weg kunnen wij geen AANBEVELING maken voor een warmtepomp. Contacteer ons via info@zwembad.eu | BZ45: - | CA45: - | CC45: Sorry, via deze weg kunnen wij geen AANBEVELING maken voor een warmtepomp. Contacteer ons via info@zwembad.eu | CD45: - | CE45: - | CG45: Sorry, via deze weg kunnen wij geen AANBEVELING maken voor een warmtepomp. Contacteer ons via info@zwembad.eu | CH45: - | CI45: - | CL45: 38 | CM45: Harmo Powerpac | CN45: 30kW trifasé | CO45: ZVWX3140 | CQ45: Harmo Powerpac | CR45: 30kW trifasé | CS45: ZVWX3140 | CU45: Harmo Powerpac | CV45: 30kW trifasé | CW45: ZVWX3140
C46: Kostprijs Warmtepompen | AC46: 240.4266667 | AD46: 216.7781421 | AE46: 155.3777778 | AF46: 108.66742 | AG46: 66 | AH46: 10 | BX46: 39 | BY46: Sorry, via deze weg kunnen wij geen AANBEVELING maken voor een warmtepomp. Contacteer ons via info@zwembad.eu | BZ46: - | CA46: - | CC46: Sorry, via deze weg kunnen wij geen AANBEVELING maken voor een warmtepomp. Contacteer ons via info@zwembad.eu | CD46: - | CE46: - | CG46: Sorry, via deze weg kunnen wij geen AANBEVELING maken voor een warmtepomp. Contacteer ons via info@zwembad.eu | CH46: - | CI46: - | CL46: 39 | CM46: Harmo Powerpac | CN46: 30kW trifasé | CO46: ZVWX3140 | CQ46: Harmo Powerpac | CR46: 30kW trifasé | CS46: ZVWX3140 | CU46: Harmo Powerpac | CV46: 30kW trifasé | CW46: ZVWX3140
U47: Kies hier | AC47: 267.1407407 | AD47: 240.8646023 | AE47: 172.6419753 | AF47: 120.7415777 | AG47: 73 | AH47: 9 | BX47: 40 | BY47: Sorry, via deze weg kunnen wij geen AANBEVELING maken voor een warmtepomp. Contacteer ons via info@zwembad.eu | BZ47: - | CA47: - | CC47: Sorry, via deze weg kunnen wij geen AANBEVELING maken voor een warmtepomp. Contacteer ons via info@zwembad.eu | CD47: - | CE47: - | CG47: Sorry, via deze weg kunnen wij geen AANBEVELING maken voor een warmtepomp. Contacteer ons via info@zwembad.eu | CH47: - | CI47: - | CL47: 40 | CM47: Harmo Powerpac | CN47: 30kW trifasé | CO47: ZVWX3140 | CQ47: Harmo Powerpac | CR47: 30kW trifasé | CS47: ZVWX3140 | CU47: Harmo Powerpac | CV47: 30kW trifasé | CW47: ZVWX3140
C48: Onderstaand overzicht is voorwaardelijk. Prijzen kunnen variaren naargelang het tijdstip van het seizoen, beschikbare voorraad, dollar wisselkoers, specifieke acties … | U48: Goede kwaliteit, laagste prijs , alleen bruikbaar mei-september | AC48: 300.5333333 | AD48: 270.9726776 | AE48: 194.2222222 | AF48: 135.834275 | AG48: 83 | AH48: 8 | BX48: 41 | BY48: Sorry, via deze weg kunnen wij geen AANBEVELING maken voor een warmtepomp. Contacteer ons via info@zwembad.eu | BZ48: - | CA48: - | CC48: Sorry, via deze weg kunnen wij geen AANBEVELING maken voor een warmtepomp. Contacteer ons via info@zwembad.eu | CD48: - | CE48: - | CG48: Sorry, via deze weg kunnen wij geen AANBEVELING maken voor een warmtepomp. Contacteer ons via info@zwembad.eu | CH48: - | CI48: - | CL48: 41 | CM48: Sorry, via deze weg kunnen wij geen AANBEVELING maken voor een warmtepomp. Contacteer on via info@zwembad.eu | CN48: - | CO48: - | CQ48: Sorry, via deze weg kunnen wij geen AANBEVELING maken voor een warmtepomp. Contacteer on via info@zwembad.eu | CS48: - | CT48: - | CU48: Sorry, via deze weg kunnen wij geen AANBEVELING maken voor een warmtepomp. Contacteer on via info@zwembad.eu | CV48: - | CW48: -
C49: De gelige prijs voor onze warmtepompen vindt u op www.zwembad.eu | Q49: Factor | U49: Prima kwaliteit, goed energieverbruik, bruikbaar maart-november | AC49: 343.4666667 | AD49: 309.6830601 | AE49: 221.968254 | AF49: 155.2391714 | AG49: 94 | AH49: 7 | BX49: 42 | BY49: Sorry, via deze weg kunnen wij geen AANBEVELING maken voor een warmtepomp. Contacteer ons via info@zwembad.eu | BZ49: - | CA49: - | CC49: Sorry, via deze weg kunnen wij geen AANBEVELING maken voor een warmtepomp. Contacteer ons via info@zwembad.eu | CD49: - | CE49: - | CG49: Sorry, via deze weg kunnen wij geen AANBEVELING maken voor een warmtepomp. Contacteer ons via info@zwembad.eu | CH49: - | CI49: - | CL49: 42 | CM49: Sorry, via deze weg kunnen wij geen AANBEVELING maken voor een warmtepomp. Contacteer on via info@zwembad.eu | CN49: - | CO49: - | CQ49: Sorry, via deze weg kunnen wij geen AANBEVELING maken voor een warmtepomp. Contacteer on via info@zwembad.eu | CS49: - | CT49: - | CU49: Sorry, via deze weg kunnen wij geen AANBEVELING maken voor een warmtepomp. Contacteer on via info@zwembad.eu | CV49: - | CW49: -
Q50: =IF(E13="Geen afdekking",0.8,IF(E13="overkapping",1.5,IF(E13="rolldeck",1.25,IF(E13="rolldeck solar",1.5,IF(E13="binnenbad",2,1))))) -> 1.5 | U50: Beste kwaliteit , laagste energieverbruik bruikbaar het hele jaar. | AC50: 400.7111111 | AD50: 361.2969035 | AE50: 258.962963 | AF50: 181.1123666 | AG50: 110 | AH50: 6 | BX50: 43 | BY50: Sorry, via deze weg kunnen wij geen AANBEVELING maken voor een warmtepomp. Contacteer ons via info@zwembad.eu | BZ50: - | CA50: - | CC50: Sorry, via deze weg kunnen wij geen AANBEVELING maken voor een warmtepomp. Contacteer ons via info@zwembad.eu | CD50: - | CE50: - | CG50: Sorry, via deze weg kunnen wij geen AANBEVELING maken voor een warmtepomp. Contacteer ons via info@zwembad.eu | CH50: - | CI50: - | CL50: 43 | CM50: Sorry, via deze weg kunnen wij geen AANBEVELING maken voor een warmtepomp. Contacteer on via info@zwembad.eu | CN50: - | CO50: - | CQ50: Sorry, via deze weg kunnen wij geen AANBEVELING maken voor een warmtepomp. Contacteer on via info@zwembad.eu | CS50: - | CT50: - | CU50: Sorry, via deze weg kunnen wij geen AANBEVELING maken voor een warmtepomp. Contacteer on via info@zwembad.eu | CV50: - | CW50: -
C51: Bij bestelling van een warmtepomp via de website, zal u de nodige producten en aansluitschema's vinden (Intex, Bestway, 50mm ingebouwd bad …). | AC51: 480.8533333 | AD51: 433.5562842 | AE51: 310.7555556 | AF51: 217.3348399 | AG51: 132 | AH51: 5 | BX51: 44 | BY51: Sorry, via deze weg kunnen wij geen AANBEVELING maken voor een warmtepomp. Contacteer ons via info@zwembad.eu | BZ51: - | CA51: - | CC51: Sorry, via deze weg kunnen wij geen AANBEVELING maken voor een warmtepomp. Contacteer ons via info@zwembad.eu | CD51: - | CE51: - | CG51: Sorry, via deze weg kunnen wij geen AANBEVELING maken voor een warmtepomp. Contacteer ons via info@zwembad.eu | CH51: - | CI51: - | CL51: 44 | CM51: Sorry, via deze weg kunnen wij geen AANBEVELING maken voor een warmtepomp. Contacteer on via info@zwembad.eu | CN51: - | CO51: - | CQ51: Sorry, via deze weg kunnen wij geen AANBEVELING maken voor een warmtepomp. Contacteer on via info@zwembad.eu | CS51: - | CT51: - | CU51: Sorry, via deze weg kunnen wij geen AANBEVELING maken voor een warmtepomp. Contacteer on via info@zwembad.eu | CV51: - | CW51: -
AC52: 601.0666667 | AD52: 541.9453552 | AE52: 388.4444444 | AF52: 271.6685499 | AG52: 166 | AH52: 4 | BX52: 45 | BY52: Sorry, via deze weg kunnen wij geen AANBEVELING maken voor een warmtepomp. Contacteer ons via info@zwembad.eu | BZ52: - | CA52: - | CC52: Sorry, via deze weg kunnen wij geen AANBEVELING maken voor een warmtepomp. Contacteer ons via info@zwembad.eu | CD52: - | CE52: - | CG52: Sorry, via deze weg kunnen wij geen AANBEVELING maken voor een warmtepomp. Contacteer ons via info@zwembad.eu | CH52: - | CI52: - | CL52: 45 | CM52: Sorry, via deze weg kunnen wij geen AANBEVELING maken voor een warmtepomp. Contacteer on via info@zwembad.eu | CN52: - | CO52: - | CQ52: Sorry, via deze weg kunnen wij geen AANBEVELING maken voor een warmtepomp. Contacteer on via info@zwembad.eu | CS52: - | CT52: - | CU52: Sorry, via deze weg kunnen wij geen AANBEVELING maken voor een warmtepomp. Contacteer on via info@zwembad.eu | CV52: - | CW52: -
C53: Voor gedetailleerde info betreffende deze warmtepompen, kan u terecht op www.harmopool.eu of www.zwembad.eu | AC53: 801.4222222 | AD53: 722.5938069 | AE53: 517.9259259 | AF53: 362.2247332 | AG53: 221 | AH53: 3 | BX53: 46 | BY53: Sorry, via deze weg kunnen wij geen AANBEVELING maken voor een warmtepomp. Contacteer ons via info@zwembad.eu | BZ53: - | CA53: - | CC53: Sorry, via deze weg kunnen wij geen AANBEVELING maken voor een warmtepomp. Contacteer ons via info@zwembad.eu | CD53: - | CE53: - | CG53: Sorry, via deze weg kunnen wij geen AANBEVELING maken voor een warmtepomp. Contacteer ons via info@zwembad.eu | CH53: - | CI53: - | CL53: 46 | CM53: Sorry, via deze weg kunnen wij geen AANBEVELING maken voor een warmtepomp. Contacteer on via info@zwembad.eu | CN53: - | CO53: - | CQ53: Sorry, via deze weg kunnen wij geen AANBEVELING maken voor een warmtepomp. Contacteer on via info@zwembad.eu | CS53: - | CT53: - | CU53: Sorry, via deze weg kunnen wij geen AANBEVELING maken voor een warmtepomp. Contacteer on via info@zwembad.eu | CV53: - | CW53: -
V54: Kies hier | AC54: 1202.133333 | AD54: 1083.89071 | AE54: 776.8888889 | AF54: 543.3370998 | AG54: 332 | AH54: 2 | BX54: 47 | BY54: Sorry, via deze weg kunnen wij geen AANBEVELING maken voor een warmtepomp. Contacteer ons via info@zwembad.eu | BZ54: - | CA54: - | CC54: Sorry, via deze weg kunnen wij geen AANBEVELING maken voor een warmtepomp. Contacteer ons via info@zwembad.eu | CD54: - | CE54: - | CG54: Sorry, via deze weg kunnen wij geen AANBEVELING maken voor een warmtepomp. Contacteer ons via info@zwembad.eu | CH54: - | CI54: - | CL54: 47 | CM54: Sorry, via deze weg kunnen wij geen AANBEVELING maken voor een warmtepomp. Contacteer on via info@zwembad.eu | CN54: - | CO54: - | CQ54: Sorry, via deze weg kunnen wij geen AANBEVELING maken voor een warmtepomp. Contacteer on via info@zwembad.eu | CS54: - | CT54: - | CU54: Sorry, via deze weg kunnen wij geen AANBEVELING maken voor een warmtepomp. Contacteer on via info@zwembad.eu | CV54: - | CW54: -
U55: ZALX5030 | V55: Harde PVC buis per meter | X55: 1.652892562 | AC55: 2404.266667 | AD55: 2167.781421 | AE55: 1553.777778 | AF55: 1086.6742 | AG55: =IF(E$13="binnenbad",$V$32/($AE$89*AH55/4),$V$11/($AE$93*AH55/4)) -> 664.7741935 | AH55: 1 | BX55: 48 | BY55: Sorry, via deze weg kunnen wij geen AANBEVELING maken voor een warmtepomp. Contacteer ons via info@zwembad.eu | BZ55: - | CA55: - | CC55: Sorry, via deze weg kunnen wij geen AANBEVELING maken voor een warmtepomp. Contacteer ons via info@zwembad.eu | CD55: - | CE55: - | CG55: Sorry, via deze weg kunnen wij geen AANBEVELING maken voor een warmtepomp. Contacteer ons via info@zwembad.eu | CH55: - | CI55: - | CL55: 48 | CM55: Sorry, via deze weg kunnen wij geen AANBEVELING maken voor een warmtepomp. Contacteer on via info@zwembad.eu | CN55: - | CO55: - | CQ55: Sorry, via deze weg kunnen wij geen AANBEVELING maken voor een warmtepomp. Contacteer on via info@zwembad.eu | CS55: - | CT55: - | CU55: Sorry, via deze weg kunnen wij geen AANBEVELING maken voor een warmtepomp. Contacteer on via info@zwembad.eu | CV55: - | CW55: -
C56: ECO | U56: ZALX5260 | V56: Flexibele PVC buis per meter | X56: 4.132231405 | BX56: 49 | BY56: Sorry, via deze weg kunnen wij geen AANBEVELING maken voor een warmtepomp. Contacteer ons via info@zwembad.eu | BZ56: - | CA56: - | CC56: Sorry, via deze weg kunnen wij geen AANBEVELING maken voor een warmtepomp. Contacteer ons via info@zwembad.eu | CD56: - | CE56: - | CG56: Sorry, via deze weg kunnen wij geen AANBEVELING maken voor een warmtepomp. Contacteer ons via info@zwembad.eu | CH56: - | CI56: - | CL56: 49 | CM56: Sorry, via deze weg kunnen wij geen AANBEVELING maken voor een warmtepomp. Contacteer on via info@zwembad.eu | CN56: - | CO56: - | CQ56: Sorry, via deze weg kunnen wij geen AANBEVELING maken voor een warmtepomp. Contacteer on via info@zwembad.eu | CS56: - | CT56: - | CU56: Sorry, via deze weg kunnen wij geen AANBEVELING maken voor een warmtepomp. Contacteer on via info@zwembad.eu | CV56: - | CW56: -
C57: Simpele draaiknop temp instelling | U57: ZALX5230 | V57: Flexibele PVC buis per 12,5 meter | X57: 45.45454545 | BX57: 50 | BY57: Sorry, via deze weg kunnen wij geen AANBEVELING maken voor een warmtepomp. Contacteer ons via info@zwembad.eu | BZ57: - | CA57: - | CC57: Sorry, via deze weg kunnen wij geen AANBEVELING maken voor een warmtepomp. Contacteer ons via info@zwembad.eu | CD57: - | CE57: - | CG57: Sorry, via deze weg kunnen wij geen AANBEVELING maken voor een warmtepomp. Contacteer ons via info@zwembad.eu | CH57: - | CI57: - | CL57: 50 | CM57: Sorry, via deze weg kunnen wij geen AANBEVELING maken voor een warmtepomp. Contacteer on via info@zwembad.eu | CN57: - | CO57: - | CQ57: Sorry, via deze weg kunnen wij geen AANBEVELING maken voor een warmtepomp. Contacteer on via info@zwembad.eu | CS57: - | CT57: - | CU57: Sorry, via deze weg kunnen wij geen AANBEVELING maken voor een warmtepomp. Contacteer on via info@zwembad.eu | CV57: - | CW57: -
C58: Functioneel bij buitentemp > 8 graden | Q58: 230V mono | U58: ZALX5240 | V58: Flexibele PVC buis per 25 meter | X58: 86.7769
C59: Bedrijfszeker door simpliciteit | Q59: 380V Trifasé | U59: ZALX5250 | V59: Flexibele PVC buis per 50 meter | X59: 157.0247934
U60: reg | V60: Geen buis nodig | X60: 0
C61: ECO 3 | D61: 3 kW | E61: ZVWX4012 | F61: 445 | G61: COP = 4,1
C62: ECO 5 | D62: 5 kW | E62: ZVWX4022 | F62: 695 | G62: COP = 5,1
C63: ECO 8 | D63: 8 kW | E63: ZVWX4032 | F63: 799 | G63: COP = 4,9 | V63: Gekozen modellen
C64: ECO 12 | D64: 12 kW | E64: ZVWX4052 | F64: 1195 | G64: COP = 5,0 | V64: =VLOOKUP(E31,BJ83:BO132,4,TRUE) -> 
P65: =IF(E26="Goede kwaliteit, laagste prijs , alleen bruikbaar mei-september",VLOOKUP(INT(E31),BX8:CA57,4,FALSE),IF(E26="Prima kwaliteit, goed energieverbruik, bruikbaar maart-november",VLOOKUP(INT(E31),BX8:CE57,8,FALSE),IF(E26="Beste kwaliteit , laagste energieverbruik bruikbaar het hele jaar.",VLOOKUP(INT(E31),BX8:CI57,12,FALSE),"Sorry, via deze weg kunnen wij geen AANBEVELING maken voor een warmtepomp. Contacteer ons via info@zwembad.eu"))) -> ZVWX3131 | Q65: =IF(E26="Goede kwaliteit, laagste prijs , alleen bruikbaar mei-september",VLOOKUP(INT(E31),BX8:CA57,3,FALSE),IF(E26="Prima kwaliteit, goed energieverbruik, bruikbaar maart-november",VLOOKUP(INT(E31),BX8:CE57,7,FALSE),IF(E26="Beste kwaliteit , laagste energieverbruik bruikbaar het hele jaar.",VLOOKUP(INT(E31),BX8:CI57,11,FALSE),"Sorry, via deze weg kunnen wij geen AANBEVELING maken voor een warmtepomp. Contacteer ons via info@zwembad.eu"))) -> 22 kW | R65: =IF(E26="Goede kwaliteit, laagste prijs , alleen bruikbaar mei-september",VLOOKUP(INT(E31),CL8:CW57,2,FALSE),IF(E26="Prima kwaliteit, goed energieverbruik, bruikbaar maart-november",VLOOKUP(INT(E31),CL8:CW57,6,FALSE),IF(E26="Beste kwaliteit , laagste energieverbruik bruikbaar het hele jaar.",VLOOKUP(INT(E31),CL8:CW57,10,FALSE),"Sorry, via deze weg kunnen wij geen AANBEVELING maken voor een warmtepomp. Contacteer ons via info@zwembad.eu"))) -> Harmo Powerpac | V65: =VLOOKUP(E31,BJ138:BO187,4,TRUE) -> 
C66: HarmoPAC | P66: =IF(E26="Goede kwaliteit, laagste prijs , alleen bruikbaar mei-september",VLOOKUP(INT(E31),CL8:CO57,4,FALSE),IF(E26="Prima kwaliteit, goed energieverbruik, bruikbaar maart-november",VLOOKUP(INT(E31),CL8:CO57,8,FALSE),IF(E26="Beste kwaliteit , laagste energieverbruik bruikbaar het hele jaar.",VLOOKUP(INT(E31),CL8:CO57,12,FALSE),"Sorry, via deze weg kunnen wij geen AANBEVELING maken voor een warmtepomp. Contacteer ons via info@zwembad.eu"))) ->  | Q66: =IF(E26="Goede kwaliteit, laagste prijs , alleen bruikbaar mei-september",VLOOKUP(INT(E31),CL8:CW57,3,FALSE),IF(E26="Prima kwaliteit, goed energieverbruik, bruikbaar maart-november",VLOOKUP(INT(E31),CL8:CW57,7,FALSE),IF(E26="Beste kwaliteit , laagste energieverbruik bruikbaar het hele jaar.",VLOOKUP(INT(E31),CL8:CW57,11,FALSE),"Sorry, via deze weg kunnen wij geen AANBEVELING maken voor een warmtepomp. Contacteer ons via info@zwembad.eu"))) -> 30kW trifasé | R66: =IF(E26="Goede kwaliteit, laagste prijs , alleen bruikbaar mei-september",VLOOKUP(INT(E31),BX8:CA57,2,FALSE),IF(E26="Prima kwaliteit, goed energieverbruik, bruikbaar maart-november",VLOOKUP(INT(E31),BX8:CE57,6,FALSE),IF(E26="Beste kwaliteit , laagste energieverbruik bruikbaar het hele jaar.",VLOOKUP(INT(E31),BX8:CI57,10,FALSE),"Sorry, via deze weg kunnen wij geen AANBEVELING maken voor een warmtepomp. Contacteer ons via info@zwembad.eu"))) -> Harmo Powerpac | V66: =VLOOKUP(E31,BJ8:BO60,4,TRUE) -> 
C67: Digitale controler | V67: =VLOOKUP(E31,BJ191:BN240,4,TRUE) -> 
C68: Functioneel bij buitentemperatuur > -5 graden
C69: Hoge efficientie | Q69: hyperlink | U69: beslissing | V69: =IF(G52=L89,F50,G52) -> 0
E70: =UPPER(E65) -> 
C71: Harmo Pac | D71: 7 kW | E71: ZVWX1017 | F71: 999 | G71: COP = 5,5 | U71: bypass? | V71: =VLOOKUP(D74,BM7:BO254,3,FALSE) -> 
C72: Harmo Pac | D72: 10 kW | E72: ZVWX1022 | F72: 1249 | G72: COP = 5,5
C73: Harmo Pac | D73: 13 kW | E73: ZVWX1032 | F73: 1899 | G73: COP = 5,5
C74: Harmo Pac | D74: 18 kW | E74: ZVWX1041 | F74: 2350 | G74: COP = 5,5 | V74: Kies hier
C75: Harmo Pac | D75: 22 kW | E75: ZVWX1055 | F75: 2950 | G75: COP = 5,5 | V75: 32 of 38 mm ribbelslang
C76: Harmo Pac | D76: 22 kW trifasé | E76: ZVWX3130 | F76: 2950 | G76: COP = 5,5 | V76: 50 mm te plakken
C77: Harmo Pac | D77: 26 kW trifasé | E77: ZVWX1061 | F77: 3250 | G77: COP = 5,5 | V77: 63 mm te plakken
V78: 2 inch buitenschroefdraad intex
C79: Harmo Powerpac | V79: 2 inch binnenschroefdraad intex
C80: Digitale controler
C81: Functioneel bij buitentemperatuur >-10 graden
C82: Hoge efficientie
V83: Potjes lijm 250ml
V84: Potjes lijm 250ml
C85: Harmo Powerpac + 7 kW | E85: ZVWX3100 | F85: 1395 | G85: COP = 5,9 | AE85: Details van de berekening
C86: Harmo Powerpac + 10 kW | E86: ZVWX3110 | F86: 1695 | G86: COP = 5,9 | V86: Kies hier
C87: Harmo Powerpac 14,3 kW WIFI | E87: ZVWX3120 | F87: 2096 | G87: COP = 6,57 | U87: ZALX1010 | V87: PVC zwembad lijm TANGIT 125ML | AC87: Maand | AE87: gem Cop | AF87: Opwarming | AG87: Aantal uur | AH87: Kosten/dag | AI87: Kosten/maand | AJ87: Opwarming | AK87: Nombre d'heures | AL87: Frais/jour | AM87: Frais/mois
C88: Harmo Powerpac 19,6 kW WIFI | E88: ZVWX3125 | F88: 2446 | G88: COP = 6,57 | U88: ZALX1020 | V88: PVC zwembad lijm TANGIT 250ML | AE88: warmtepomp | AF88: per uur | AG88: per dag WP | AH88: (eur) | AI88: warmtepomp | AJ88: per uur | AK88: par jour chauffage electrique | AL88: electr | AM88: chauffage electrique.
C89: Harmo Powerpac 22 kW | E89: ZVWX3131 | F89: 3595 | G89: COP = 5,2 | AC89: Jan | AE89: =$S$26-(26-R7)*($S$26-$S$27)/21 -> 1.642857143 | AF89: =(AE89/4)*($E$31/1.16)/$E$10 -> 0.06238271171 | AG89: =IF(V7<0.01,0,V7/(AE89*$E$31/4)) -> 97.47027027 | AH89: =($E$31/4)*AG89*($X$26*0.8+$X$27*1.2)/2 -> 34.86186667 | AI89: =IF(AH89<0,0,AH89*31) -> 1080.717867 | AJ89: =(100/$E$10)*(#REF!/116) ->  | AK89: =X6/#REF! ->  | AL89: =IF(AK89>8,8*#REF!*$X$27+(AK89-8)*#REF!*$X$26*0.8,AK89*#REF!*$X$27) ->  | AM89: =AL89*31 -> 
C90: Harmo Powerpac 22 kW Tri | E90: ZVWX3130 | F90: 3595 | G90: COP = 5,2 | AC90: feb | AE90: 1.742857143 | AF90: 0.06617992024 | AG90: =IF(V8<0.01,0,V8/(AE90*$E$31/4)) -> 87.88303057 | AH90: 31.4328306 | AI90: =AH90*28 -> 880.1192568 | AJ90: =(100/$E$10)*(#REF!/116) ->  | AK90: =X7/#REF! ->  | AL90: =IF(AK90>8,8*#REF!*$X$27+(AK90-8)*#REF!*$X$26*0.8,AK90*#REF!*$X$27) ->  | AM90: =AL90*31 -> 
C91: Harmo Powerpac 30 kW tri | E91: ZVWX3140 | F91: 3995 | G91: COP = 5,4 | AC91: Maart | AE91: 2.1 | AF91: 0.07974137931 | AG91: 62.99099099 | AH91: 22.52977778 | AI91: =AH91*31 -> 698.4231111 | AJ91: =(100/$E$10)*(#REF!/116) ->  | AK91: =X8/#REF! ->  | AL91: =IF(AK91>8,8*#REF!*$X$27+(AK91-8)*#REF!*$X$26*0.8,AK91*#REF!*$X$27) -> 
U92: ZALX4360 | V92: PVC Overgang Ø5cm te lijmen naar Ø 3,2 / 3,8 | W92: PVC Overgang Ø5cm te lijmen naar Ø 3,2 / 3,8 | X92: 2.066115702 | AC92: April | AE92: 2.528571429 | AF92: 0.09601513019 | AG92: 44.05435944 | AH92: 15.75677589 | AI92: =AH92*30 -> 472.7032768 | AJ92: =(100/$E$10)*(#REF!/116) ->  | AK92: =X9/#REF! ->  | AL92: =IF(AK92>8,8*#REF!*$X$27+(AK92-8)*#REF!*$X$26*0.8,AK92*#REF!*$X$27) -> 
U93: ZALX9020 | V93: Spanring Inox Ø 32 / 38 mm | W93: Spanring Inox Ø 32 / 38 mm | X93: 0.8181818182 | AC93: Mei | AE93: 3.1 | AF93: 0.1177134647 | AG93: 26.95030514 | AH93: 9.639225806 | AI93: =AH93*31 -> 298.816 | AJ93: =(100/$E$10)*(#REF!/116) ->  | AK93: =X10/#REF! ->  | AL93: =IF(AK93>8,8*#REF!*$X$27+(AK93-8)*#REF!*$X$26*0.8,AK93*#REF!*$X$27) -> 
U94: ZALX3130 | V94: PVC Mof Ø 5cm | W94: PVC Mof Ø 5cm | X94: 1.239669421 | AC94: Juni | AE94: 3.528571429 | AF94: 0.1339872156 | AG94: 15.78465915 | AH94: 5.645646424 | AI94: =AH94*30 -> 169.3693927 | AJ94: =(100/$E$10)*(#REF!/116) ->  | AK94: =X11/#REF! ->  | AL94: =IF(AK94>8,8*#REF!*$X$27+(AK94-8)*#REF!*$X$26*0.8,AK94*#REF!*$X$27) -> 
U95: ZALX3150 | V95: PVC Mof Ø 63cm | W95: PVC Mof Ø 63cm | X95: 2.066115702 | AC95: July | AE95: 3.742857143 | AF95: 0.142124091 | AG95: 11.16071797 | AH95: 3.991816794 | AI95: =AH95*31 -> 123.7463206 | AJ95: =(100/$E$10)*(#REF!/116) ->  | AK95: =X12/#REF! ->  | AL95: =IF(AK95>8,8*#REF!*$X$27+(AK95-8)*#REF!*$X$26*0.8,AK95*#REF!*$X$27) -> 
U96: ZALX6025 | V96: Overgang van 50 naar 63mm | W96: Overgang van 50 naar 63mm | X96: =1.5/1.21 -> 1.239669421 | AC96: Aug | AE96: 3.714285714 | AF96: 0.1410391743 | AG96: 11.24656965 | AH96: 4.022523077 | AI96: =AH96*31 -> 124.6982154 | AJ96: =(100/$E$10)*(#REF!/116) ->  | AK96: =X13/#REF! ->  | AL96: =IF(AK96>8,8*#REF!*$X$27+(AK96-8)*#REF!*$X$26*0.8,AK96*#REF!*$X$27) -> 
U97: ZOIX9830 | V97: Slang met 2 schroefdichtingen INTEX | W97: Slang met 2 schroefdichtingen INTEX | X97: =10/1.21 -> 8.26446281 | AC97: Sept | AE97: 3.342857143 | AF97: 0.1269352569 | AG97: 20.82698083 | AH97: 7.449116809 | AI97: =AH97*30 -> 223.4735043 | AJ97: =(100/$E$10)*(#REF!/116) ->  | AK97: =X14/#REF! ->  | AL97: =IF(AK97>8,8*#REF!*$X$27+(AK97-8)*#REF!*$X$26*0.8,AK97*#REF!*$X$27) -> 
U98: ZALX4240 | V98: Overgang 2 inch schroefdraad (man) naar 50 te plakken | W98: Overgang 2 inch schroefdraad (man) naar 50 te plakken | X98: 1.652892562 | AC98: Okt | AE98: 2.771428571 | AF98: 0.1052369224 | AG98: 32.65756478 | AH98: 11.68052234 | AI98: =AH98*31 -> 362.0961924 | AJ98: =(100/$E$10)*(#REF!/116) ->  | AK98: =X15/#REF! ->  | AL98: =IF(AK98>8,8*#REF!*$X$27+(AK98-8)*#REF!*$X$26*0.8,AK98*#REF!*$X$27) -> 
AC99: Nov | AE99: 2.142857143 | AF99: 0.0813687544 | AG99: 61.73117117 | AH99: 22.07918222 | AI99: =AH99*30 -> 662.3754667 | AJ99: =(100/$E$10)*(#REF!/116) ->  | AK99: =X16/#REF! ->  | AL99: =IF(AK99>8,8*#REF!*$X$27+(AK99-8)*#REF!*$X$26*0.8,AK99*#REF!*$X$27) -> 
U100: ZALX1020 | V100: PVC zwembad lijm TANGIT 250ML | W100: PVC zwembad lijm TANGIT 250ML | X100: 6.198347107 | AC100: Dec | AE100: 1.771428571 | AF100: 0.06726483697 | AG100: 86.46556234 | AH100: 30.92584946 | AI100: =AH100*30 -> 927.7754839 | AJ100: =(100/$E$10)*(#REF!/116) ->  | AK100: =X17/#REF! ->  | AL100: =IF(AK100>8,8*#REF!*$X$27+(AK100-8)*#REF!*$X$26*0.8,AK100*#REF!*$X$27) -> 
U101: ZALX1010 | V101: PVC zwembad lijm TANGIT 125ML | W101: PVC zwembad lijm TANGIT 125ML | X101: =5/1.21 -> 4.132231405
AE103: factor
AE104: rolldeck solar | AF104: 0.7 | AH104: mei-sep | AI104: =INT(SUM(AI93:AI97)) -> 940
AE105: rolldeck | AF105: 0.8 | AH105: april-okt | AI105: =INT(SUM(AI92:AI98)) -> 1774
U106: Geen afdekking | V106: =IF(E$13=U106,1,0) -> 0 | AE106: overkapping | AF106: 0.7 | AH106: maart-nov | AI106: =INT(SUM(AI91:AI99)) -> 3135
U107: Bubbelzeil | V107: =IF(E$13=U107,0.7,0) -> 0 | AE107: ander | AF107: 1 | AH107: jan-dev | AI107: =INT(SUM(AI89:AI100)) -> 6024
U108: Overkapping | V108: =IF(E$13=U108,0.7,0) -> 0.7
U109: Rolldeck | V109: =IF(E$13=U109,0.85,0) -> 0
U110: Rolldeck solar | V110: =IF(E$13=U110,0.7,0) -> 0
U111: Binnenbad | V111: =IF(E$13=U111,1,0) -> 0
V112: =SUM(V106:V111) -> 0.7
U113: aanbeveling
U114: =IF(E26<>"All seasons en SPA warmtepomp : werkt tot -5°C, max temp 40°C",VLOOKUP(E31,BJ8:BL58,2,TRUE),"") -> 
U115: =IF(E26="All seasons en SPA warmtepomp : werkt tot -5°C, max temp 40°C",VLOOKUP(E31,BJ83:BL132,2,TRUE),"") -> 
U116: =U114&U115 -> 
U119: ja
U120: neen
U123: Kies je ophaalcentrum
U124: Rechtstreeks naar eindklant
U125: Ophaalcentrum Gent
U126: Ophaalcentrum Beringen
U127: Ophaalcentrum Boortmeerbeek
U128: Ophaalcentrum Zemst
U129: Ophaalcentrum Berlaar
U130: Ophaalcentrum Wuustwezel
U131: Ophaalcentrum Kalmthout
U132: Ophaalcentrum Bousval
